[Event "MARCEL 1st Div Ch-League 2019"]
[Site "Dhaka"]
[Date "2019.11.14"]
[Round "3.11"]
[White "Islam, Mohammad Aminul"]
[Black "Sharmin, Samiha Shimmi"]
[Result "1-0"]
[ECO "D30"]
[WhiteElo "2078"]
[BlackElo "1853"]
[Annotator "NA RC"]
[PlyCount "51"]
[EventDate "2019.11.12"]
[EventCountry "BAN"]
[SourceTitle "playchess.com"]
[Source "ChessBase"]
[SourceQuality "1"]
[TimeControl "5400+30"]

{[%evp 8,51,27,20,29,36,30,31,43,51,40,36,72,82,98,92,97,71,117,57,48,55,52,47,50,57,32767,61,66,18,75,68,53,53,64,55,131,32767,32767,32767,32767,32767,32767,32767,1848,2004]} 1. Nf3 {[%emt 1:30:30]} d5 {[%emt 1:30:30]} 2. g3 {[%emt 0:00:30]} Nf6 {[%emt 0:00:30]} 3. Bg2 {[%emt 0:00:30]} e6 {[%emt 0:00:30]} 4. d4 {[%emt 0:00:30]} c5 {[%emt 0:00:30]} 5. c4 {[%emt 0:00:30]} Nc6 {[%emt 0:00:30]} 6. cxd5 {[%emt 0:00:30]} exd5 {[%emt 0:00:30]} 7. O-O {[%emt 0:00:30]} Bd6 {[%emt 0:00:30] D30: Queen's Gambit Declined: Systems without Nc3} (7... Be7 8. Nc3 O-O 9. h3 Ne4 10. dxc5 Bxc5 11. Bf4 Nxc3 12. bxc3 Bf5 13. Nd2 Re8 14. g4 Bg6 15. e3 Bb6 16. Qb3 Re7 17. Rfd1 Rd7 {½-½ (52) Nakamura,H (2777)-Mamedyarov,S (2801) Saint Louis 2018}) 8. Nc3 {[%emt 0:00:30]} Be6 {[%emt 0:00:30]} 9. Bg5 {[%emt 0:00:30]} cxd4 {[%emt 0:00:30]} 10. Nxd4 {[%emt 0:00:30]} h6 {[%emt 0:00:30]} 11. Bxf6 {[%emt 0:00:30]} Qxf6 {[%emt 0:00:30]} 12. Ndb5 {[%emt 0:00:30]} Be5 $146 {[%emt 0:00:30]} ({Predecessor:} 12... Rd8 13. Nxd6+ Rxd6 14. Ne4 dxe4 15. Qxd6 Qxb2 16. Bxe4 Nd8 17. Rab1 Qf6 18. Rxb7 Nxb7 19. Bc6+ Bd7 20. Qxd7+ {1-0 (20) Barre,P (1999)-Delalee,P (1480) Fouesnant 2005}) 13. e4 {[%emt 0:00:30]} d4 {[%emt 0:00:30]} 14. Nd5 {[%emt 0:00:30]} Qd8 {[%emt 0:00:30]} 15. f4 {[%emt 0:00:30]} a6 {[%emt 0:00:30]} 16. Na3 {[%emt 0:00:30]} Bf6 {[%emt 0:00:30]} 17. Nc4 {[%emt 0:00:30]} O-O {[%emt 0:00:30]} 18. Nxf6+ {[%emt 0:00:30]} (18. Ncb6 $16) 18... gxf6 {[%emt 0:00:30]} 19. Nd2 {[%emt 0:00:30]} d3 {[%emt 0:00:30]} 20. f5 {[%emt 0:00:30]} Qb6+ {[%emt 0:00:30]} 21. Kh1 {[%emt 0:00:30]} Bd7 {[%emt 0:00:30]} 22. Rf4 {[%emt 0:00:30]} Qe3 {[%emt 0:00:30]} 23. Qh5 {[%emt 0:00:30]} Kh7 {[%emt 0:00:30]} 24. Nc4 {[%emt 0:00:30]} Qe2 {[%emt 0:00:30]} 25. Bf3 {[%emt 0:00:30]} Qf2 {[%emt 0:00:30]} 26. Rh4 $18 {[%emt 0:00:30]} 1-0

[Event "MARCEL 1st Div Ch-League 2019"]
[Site "Dhaka"]
[Date "2019.11.14"]
[Round "3.12"]
[White "Hasan, Mostafa Razibul"]
[Black "Avik, Sarker"]
[Result "0-1"]
[ECO "E05"]
[WhiteElo "1903"]
[BlackElo "1980"]
[Annotator "NA RC"]
[PlyCount "68"]
[EventDate "2019.11.12"]
[EventCountry "BAN"]
[SourceTitle "playchess.com"]
[Source "ChessBase"]
[SourceQuality "1"]
[TimeControl "5400+30"]

{[%evp 8,68,16,22,9,22,33,11,10,21,16,12,19,-12,-8,-25,0,-29,-13,-48,-28,-70,-54,-120,-100,-114,-121,-127,-98,-121,-136,-134,-125,-140,-141,-178,-190,-184,32767,32767,32767,32767,32767,32767,32767,32767,32767,32767,32767,-308,-370,-364,-378,-406,-495,-399,-517,-531,-731,-690,-884,-800,-1620]} 1. Nf3 {[%emt 1:30:30]} d5 {[%emt 1:30:30]} 2. d4 {[%emt 0:00:30]} Nf6 {[%emt 0:00:30]} 3. g3 {[%emt 0:00:30]} e6 {[%emt 0:00:30]} 4. Bg2 {[%emt 0:00:30]} Be7 {[%emt 0:00:30]} 5. O-O {[%emt 0:00:30]} O-O {[%emt 0:00:30]} 6. c4 {[%emt 0:00:30]} dxc4 {[%emt 0:00:30]} 7. Qc2 {[%emt 0:00:30]} a6 {[%emt 0:00:30]} 8. a4 {[%emt 0:00:30]} Bd7 {[%emt 0:00:30]} 9. Ne5 {[%emt 0:00:30]} Nc6 {[%emt 0:00:30]} 10. Nxc6 {[%emt 0:00:30]} Bxc6 {[%emt 0:00:30]} 11. Bxc6 {[%emt 0:00:30]} bxc6 {[%emt 0:00:30]} 12. Qxc4 {[%emt 0:00:30] E05: Open Catalan: 5 Nf3 Be7} (12. Rd1 Rb8 13. Bg5 Nd7 14. Bxe7 Qxe7 15. Na3 Rb4 16. Nxc4 Rfb8 17. Rab1 Qg5 18. Nd2 Qd5 19. b3 Nf6 {1-0 (44) Cifuentes Parada,R (2465)-Martin Duque,J (2345) La Roda 2018}) 12... Qd5 {[%emt 0:00:30]} 13. Qxd5 {[%emt 0:00:30]} cxd5 {[%emt 0:00:30]} 14. Nc3 {[%emt 0:00:30]} c5 $146 {[%emt 0:00:30]} ({Predecessor:} 14... Rab8 15. Ra2 Rb3 16. Bg5 Rfb8 17. Nd1 c5 18. dxc5 Bxc5 19. Bf4 R8b7 {0-1 (48) Goric,E (2268)-Titan,M (2226) Hungary 2018}) 15. e3 {[%emt 0:00:30]} (15. dxc5 $15 Bxc5 16. Bf4) 15... Rab8 {[%emt 0:00:30]} 16. dxc5 {[%emt 0:00:30]} Bxc5 {[%emt 0:00:30]} 17. Rd1 {[%emt 0:00:30]} Rfc8 {[%emt 0:00:30]} 18. Kg2 {[%emt 0:00:30]} Rb3 {[%emt 0:00:30]} 19. Rb1 {[%emt 0:00:30]} Rcb8 {[%emt 0:00:30]} 20. Ne2 {[%emt 0:00:30]} Ne4 {[%emt 0:00:30]} 21. Nd4 {[%emt 0:00:30]} Bxd4 $1 {[%emt 0:00:30]} 22. exd4 {[%emt 0:00:30]} R8b7 {[%emt 0:00:30]} 23. Be3 {[%emt 0:00:30]} Nd6 {[%emt 0:00:30]} 24. Kf1 {[%emt 0:00:30]} Rxb2 {[%emt 0:00:30]} 25. Rxb2 {[%emt 0:00:30]} Rxb2 {[%emt 0:00:30]} 26. Rd2 {[%emt 0:00:30]} Nc4 {[%emt 0:00:30]} 27. Rd3 {[%emt 0:00:30]} f6 {[%emt 0:00:30]} 28. h4 {[%emt 0:00:30]} a5 {[%emt 0:00:30]} 29. Bf4 {[%emt 0:00:30]} Rb4 {[%emt 0:00:30]} 30. Ke2 {[%emt 0:00:30]} Rxa4 {[%emt 0:00:30]} 31. Rb3 {[%emt 0:00:30]} Rb4 {[%emt 0:00:30]} 32. Rxb4 {[%emt 0:00:30]} axb4 {[%emt 0:00:30]} 33. Kd3 {[%emt 0:00:30]} b3 {[%emt 0:00:30]} 34. Kc3 $19 {[%emt 0:00:30]} b2 {[%emt 0:00:30]} 0-1

[Event "MARCEL 1st Div Ch-League 2019"]
[Site "Dhaka"]
[Date "2019.11.15"]
[Round "4.1"]
[White "Suvradeepta, Das"]
[Black "Imam, Farhadur"]
[Result "*"]
[ECO "D78"]
[WhiteElo "1997"]
[BlackElo "2033"]
[Annotator "NA RC"]
[PlyCount "24"]
[EventDate "2019.11.12"]
[EventCountry "BAN"]
[SourceTitle "playchess.com"]
[Source "ChessBase"]
[SourceQuality "1"]
[TimeControl "5400+30"]

1. c4 {[%emt 1:30:30]} c6 {[%emt 0:04:12]} 2. g3 {[%emt 0:00:00]} d5 {[%emt 0:00:51]} 3. Bg2 {[%emt 0:00:00]} g6 {[%emt 0:01:38]} 4. Nf3 {[%emt 0:00:00]} Bg7 {[%emt 0:00:32]} 5. O-O {[%emt 0:00:00]} Nf6 {[%emt 0:00:24]} 6. d4 $11 {[%emt 0:00:00]} O-O {[%emt 0:19:44]} 7. b3 {[%emt 0:00:00]} Ne4 {[%emt 0:00:30]} 8. Bb2 {[%emt 0:00:00]} Nd7 {[%emt 0:00:30]} 9. Nbd2 {[%emt 0:00:00]} Nxd2 {[%emt 0:00:30]} 10. Qxd2 {[%emt 0:00:00]} dxc4 {[%emt 0:00:30]} 11. bxc4 {[%emt 0:00:00]} e5 {[%emt 0:00:30]} 12. d5 {[%emt 0:00:00]} cxd5 {[%emt 0:00:30]} *

[Event "MARCEL 1st Div Ch-League 2019"]
[Site "Dhaka"]
[Date "2019.11.15"]
[Round "4.2"]
[White "Sambarta Banerjee"]
[Black "Sarbojit Paul"]
[Result "1/2-1/2"]
[ECO "D20"]
[WhiteElo "1957"]
[BlackElo "2074"]
[Annotator "NA"]
[PlyCount "26"]
[EventDate "2019.11.12"]
[EventCountry "BAN"]
[SourceTitle "playchess.com"]
[Source "ChessBase"]
[SourceQuality "1"]
[TimeControl "5400+30"]

1. d4 {[%emt 0:00:00]} d5 {[%emt 0:09:57]} 2. c4 {[%emt 0:00:00]} dxc4 {[%emt 0:00:54]} 3. e3 {[%emt 0:00:35]} e5 {[%emt 0:00:40]} 4. Bxc4 {[%emt 0:03:16]} exd4 {[%emt 0:00:03]} 5. Qxd4 {[%emt 0:19:35]} Qxd4 {[%emt 0:00:30]} 6. exd4 {[%emt 0:00:30]} Nc6 {[%emt 0:00:30]} 7. Ne2 {[%emt 0:00:30]} Nf6 {[%emt 0:00:30]} 8. Nbc3 {[%emt 0:00:30]} a6 {[%emt 0:00:30]} 9. Bf4 {[%emt 0:00:30]} b5 {[%emt 0:00:30]} 10. Bb3 {[%emt 0:00:30]} Bd6 {[%emt 0:00:30]} 11. Bxd6 {[%emt 0:00:30]} cxd6 {[%emt 0:00:30]} 12. O-O {[%emt 0:00:30]} Na5 {[%emt 0:00:30]} 13. Bc2 {[%emt 0:00:30]} Bb7 {[%emt 0:00:30]} 1/2-1/2

[Event "MARCEL 1st Div Ch-League 2019"]
[Site "Dhaka"]
[Date "2019.11.15"]
[Round "4.3"]
[White "Gias Uddin, Ahmed"]
[Black "Suvankar Maity"]
[Result "*"]
[WhiteElo "1900"]
[BlackElo "1795"]
[Annotator "NA RC"]
[PlyCount "19"]
[EventDate "2019.11.12"]
[EventCountry "BAN"]
[SourceTitle "playchess.com"]
[Source "ChessBase"]
[SourceQuality "1"]
[TimeControl "5400+30"]

{[%evp 8,19,45,28,32,21,83,14,9,2,29,20,24,-11]} 1. c4 {[%emt 0:00:45]} c5 {[%emt 0:00:00]} 2. Nc3 {[%emt 0:00:09]} e6 {[%emt 0:00:00]} 3. e4 {[%emt 0:00:55]} a6 {[%emt 0:00:09]} 4. Nf3 {[%emt 0:00:21]} Qc7 {[%emt 0:00:25]} 5. g3 {[%emt 0:01:34]} Nc6 {[%emt 0:00:16]} 6. Bg2 {[%emt 0:00:36]} g6 {[%emt 0:01:59]} (6... Nge7 $11 {remains equal.}) 7. O-O {[%emt 0:04:06]} ({White should try} 7. d4 $16) 7... Bg7 {[%emt 1:30:41]} 8. d3 {[%emt 0:01:31]} Nge7 {[%emt 0:01:05]} 9. Be3 {[%emt 0:03:23]} Nd4 {[%emt 0:00:50]} 10. Nh4 $11 {[%emt 0:01:29]} *

[Event "MARCEL 1st Div Ch-League 2019"]
[Site "Dhaka"]
[Date "2019.11.15"]
[Round "4.6"]
[White "Nurul, Islam"]
[Black "S.a.m., Nasir"]
[Result "*"]
[ECO "E90"]
[WhiteElo "1989"]
[BlackElo "2002"]
[Annotator "NA RC"]
[PlyCount "21"]
[EventDate "2019.11.12"]
[EventCountry "BAN"]
[SourceTitle "playchess.com"]
[Source "ChessBase"]
[SourceQuality "1"]
[TimeControl "5400+30"]

{[%evp 8,21,38,42,37,23,51,30,47,35,67,50,77,66,70,54]} 1. e4 {[%emt 0:00:47]} d6 {[%emt 1:30:30]} 2. d4 {[%emt 1:30:13]} g6 {[%emt 0:00:00]} 3. c4 {[%emt 0:00:30]} Bg7 {[%emt 0:00:07]} 4. Nf3 {[%emt 0:00:00]} Nf6 {[%emt 0:00:32]} 5. Nc3 {[%emt 0:00:00]} O-O {[%emt 0:00:14]} 6. Be2 {[%emt 0:00:00]} Nbd7 {[%emt 0:00:47]} 7. h3 {[%emt 0:02:00]} c6 {[%emt 0:01:55]} 8. Be3 {[%emt 0:00:00]} Qc7 {[%emt 0:00:41]} 9. Rc1 {[%emt 0:00:00]} e5 {[%emt 0:00:40]} 10. d5 {[%emt 0:00:00]} a5 {[%emt 0:00:37]} 11. O-O $14 {[%emt 0:02:00]} *

[Event "MARCEL 1st Div Ch-League 2019"]
[Site "Dhaka"]
[Date "2019.11.15"]
[Round "4.7"]
[White "Apollosana Mangang, Rajkumar"]
[Black "Bappi, A.b."]
[Result "*"]
[ECO "C87"]
[WhiteElo "2078"]
[BlackElo "1827"]
[Annotator "NA RC"]
[PlyCount "21"]
[EventDate "2019.11.12"]
[EventCountry "BAN"]
[SourceTitle "playchess.com"]
[Source "ChessBase"]
[SourceQuality "1"]
[TimeControl "5400+30"]

{[%evp 8,21,24,22,39,25,31,17,26,21,22,35,38,33,50,52]} 1. e4 {[%emt 0:00:00]} e5 {[%emt 0:00:03]} 2. Nf3 {[%emt 1:31:00]} Nc6 {[%emt 0:00:00]} 3. Bb5 {[%emt 0:00:00]} Nf6 {[%emt 0:00:00]} 4. d3 {[%emt 0:00:00]} d6 {[%emt 0:00:00]} 5. c3 {[%emt 0:00:00]} Be7 {[%emt 0:00:00]} 6. O-O {[%emt 0:00:00]} O-O {[%emt 0:00:00]} 7. Re1 {[%emt 0:00:00]} a6 {[%emt 0:00:00]} 8. Ba4 {[%emt 0:00:00]} Bg4 {[%emt 0:00:00]} 9. h3 {[%emt 0:00:00]} Bh5 {[%emt 0:03:00]} 10. Nbd2 {[%emt 0:00:00]} h6 {[%emt 0:00:30]} 11. Nf1 $14 {[%emt 0:00:00]} *

[Event "MARCEL 1st Div Ch-League 2019"]
[Site "Dhaka"]
[Date "2019.11.16"]
[Round "5.1"]
[White "Mukitul, Islam Ripon"]
[Black "Suvradeepta, Das"]
[Result "0-1"]
[ECO "B15"]
[WhiteElo "1880"]
[BlackElo "1997"]
[Annotator "NA RC"]
[PlyCount "62"]
[EventDate "2019.11.12"]
[EventCountry "BAN"]
[SourceTitle "playchess.com"]
[Source "ChessBase"]
[SourceQuality "1"]
[TimeControl "5400+30"]

{[%evp 8,62,33,51,39,56,49,33,25,41,56,39,32,42,56,83,119,26,43,36,57,12,74,0,0,-57,-61,-61,-58,-68,-25,-52,-37,-54,-55,-268,-96,-120,-103,-276,-275,-261,-225,-678,-355,-490,-479,-479,-376,-854,-1216,-2476,-2556,-29993,-29994,-29994,-29995]} 1. e4 {[%emt 0:00:00]} g6 {[%emt 0:00:00]} 2. d4 {[%emt 0:02:22]} Bg7 {[%emt 0:00:00]} 3. Nc3 {[%emt 0:02:32]} c6 {[%emt 0:00:00]} 4. Be3 {[%emt 0:01:19]} d5 {[%emt 0:00:00]} 5. e5 {[%emt 0:05:34]} f6 {[%emt 0:00:15]} 6. f4 {[%emt 0:02:29] B15: Caro-Kann: 3 Nc3: 3...g6 and 3...dxe4 4 Nxe4 Nf6 5 Nxf6+ exf6} Nh6 {[%emt 0:00:28]} 7. Be2 {[%emt 0:03:54]} (7. Qd2 O-O 8. O-O-O fxe5 9. fxe5 Ng4 10. Nf3 Nxe3 11. Qxe3 Bg4 12. Be2 e6 13. Kb1 Nd7 {1-0 (61) Dominguez Perez,L (2757)-Anton Guijarro,D (2574) Linares 2013}) 7... O-O {[%emt 0:00:35]} 8. Qd2 {[%emt 0:06:04]} Ng4 {[%emt 0:06:25]} 9. Bxg4 {[%emt 0:00:55]} Bxg4 {[%emt 0:00:03]} 10. h3 {[%emt 0:00:25]} Bd7 $146 {[%emt 0:02:27]} ({Predecessor:} 10... Be6 11. O-O-O b5 12. g4 Nd7 13. Nf3 Nb6 14. b3 {1-0 (65) Mirzoev,A (2553)-Tologontegin,S (2382) Teheran 2014}) 11. Nf3 {[%emt 0:01:22]} Qc7 {[%emt 0:00:46]} 12. h4 {[%emt 0:08:27]} (12. g4 $16) 12... Bg4 {[%emt 0:03:19]} 13. Nh2 {[%emt 0:02:06]} Qd7 {[%emt 0:00:17]} 14. Ne2 {[%emt 0:59:31]} fxe5 {[%emt 1:22:25]} 15. fxe5 {[%emt 0:00:30] [#]} (15. dxe5 $16 Be6 16. Nf3) 15... c5 $1 {[%emt 0:00:30]} 16. Nxg4 {[%emt 0:00:00]} (16. c3 $11) 16... Qxg4 {[%emt 0:00:30]} 17. O-O-O {[%emt 0:01:00]} Nc6 {[%emt 0:00:30]} ({Reject} 17... Qxg2 $6 18. Rdg1 $11) 18. dxc5 {[%emt 0:00:00]} e6 {[%emt 0:00:30]} 19. h5 {[%emt 0:00:00]} Nxe5 {[%emt 0:01:00]} 20. b3 {[%emt 0:01:30]} gxh5 {[%emt 0:01:30]} 21. Nf4 $2 {[%emt 0:00:30] [#]} (21. Kb1 $17) 21... h4 $2 {[%emt 0:00:30]} (21... d4 $1 $19 {[%cal Rd4e3][%mdl 512] has better winning chances.} 22. Nxh5 (22. Qxd4 $2 Ng6 $19 {[%mdl 64] Discovered Attack}) 22... dxe3 23. Qxe3 Bh8) 22. Rdf1 {[%emt 0:00:30]} Rf5 {[%emt 0:00:30]} 23. Nxd5 $2 {[%emt 0:00:30]} (23. Re1 $17) 23... exd5 {[%emt 0:00:30]} 24. Qxd5+ {[%emt 0:00:30]} Kh8 {[%emt 0:00:30]} 25. Qxb7 $2 {[%emt 0:00:30]} (25. Rxf5 Qxf5 26. Kb1) 25... Raf8 {[%emt 0:00:30]} 26. Rd1 $2 {[%emt 0:00:00]} (26. Rxf5 Qxf5 27. Qd5) 26... R5f7 {[%emt 0:00:30]} 27. Qa6 {[%emt 0:01:00]} Qe4 28. Bh6 $2 {[%emt 0:00:30] [#]} (28. Bd4 Rd7 29. c3) 28... Rf2 $1 {[%emt 0:00:00]} 29. Bxg7+ {[%emt 0:00:00]} Kxg7 {[%emt 0:02:00]} 30. Rd2 {[%emt 0:01:00]} Rxd2 {[%emt 0:00:00]} 31. Qb7+ {[%emt 0:00:30]} Qxb7 {[%emt 0:01:00]} 0-1

[Event "MARCEL 1st Div Ch-League 2019"]
[Site "Dhaka"]
[Date "2019.11.16"]
[Round "5.2"]
[White "Sarbojit Paul"]
[Black "Khan, Md. Monir Hossain"]
[Result "1-0"]
[ECO "C79"]
[WhiteElo "2074"]
[BlackElo "1993"]
[Annotator "NA RC"]
[PlyCount "109"]
[EventDate "2019.11.12"]
[EventCountry "BAN"]
[SourceTitle "playchess.com"]
[Source "ChessBase"]
[SourceQuality "1"]
[TimeControl "5400+30"]

{[%evp 11,109,34,23,25,51,45,89,74,138,118,107,91,134,120,93,97,103,108,128,120,113,125,132,93,97,95,93,95,102,102,97,107,111,102,127,100,92,62,43,66,69,47,69,60,58,66,63,45,65,66,32767,32767,32767,32767,32767,32767,32767,55,88,66,59,30,32,52,168,181,195,102,262,254,237,251,32767,32767,260,284,345,306,341,397,433,304,400,291,415,297,291,440,446,387,717,448,395,490,921,464,1201,1742,2239,2887]} 1. e4 {[%emt 0:00:00]} e5 {[%emt 0:03:01]} 2. Nf3 {[%emt 0:00:39]} Nc6 {[%emt 0:00:11]} 3. Bb5 {[%emt 0:00:15]} a6 {[%emt 0:02:06]} 4. Ba4 {[%emt 0:00:44]} Nf6 {[%emt 0:00:03]} 5. O-O {[%emt 0:00:05]} d6 {[%emt 0:00:25]} 6. Re1 {[%emt 0:00:25]} b5 {[%emt 0:00:20]} 7. Bb3 {[%emt 0:00:01]} Na5 {[%emt 0:00:29]} 8. d4 {[%emt 0:01:27] C79: Ruy Lopez: Steinitz-type lines with 3...a6 4 Ba4 Nf6 5 0-0 d6} Bg4 {[%emt 0:00:58]} (8... Nd7 9. dxe5 Nxb3 10. Bg5 f6 11. exf6 gxf6 12. e5 dxe5 13. Nxe5 Nxe5 14. Rxe5+ Be7 15. Qh5+ Kd7 16. Bxf6 Nxa1 17. Bxe7 Qxe7 18. Rxe7+ Kxe7 19. Qc5+ Kf7 20. Qxc7+ {1-0 (20) Edouard,R (2620)-Tkachiev,V (2639) Belfort 2010}) 9. dxe5 {[%emt 0:01:51]} Bxf3 {[%emt 0:00:04]} 10. Qxf3 {[%emt 0:00:40]} dxe5 {[%emt 0:01:07]} 11. Qc3 {[%emt 0:07:13]} Nxb3 {[%emt 0:07:11]} 12. Qxe5+ {[%emt 0:00:22]} Be7 $146 {[%emt 0:00:05]} ({Predecessor:} 12... Qe7 13. Qxe7+ Bxe7 14. axb3 O-O 15. Bg5 Rfd8 {1-0 (40) Capablanca,J-Augustus,E Cleveland 1926}) 13. axb3 {[%emt 0:00:43]} O-O {[%emt 0:00:09]} 14. Nc3 {[%emt 0:04:44]} Bb4 {[%emt 0:04:58]} 15. Bg5 {[%emt 0:02:42]} Re8 {[%emt 0:11:40]} 16. Qf5 {[%emt 0:06:46]} Qd7 {[%emt 0:16:00]} 17. Bxf6 {[%emt 0:02:31]} Qxf5 {[%emt 0:00:53]} 18. exf5 {[%emt 0:00:05]} Rxe1+ {[%emt 0:02:17]} 19. Rxe1 {[%emt 0:00:04]} gxf6 {[%emt 0:00:17]} 20. Kf1 {[%emt 0:09:27]} Bxc3 {[%emt 0:00:44]} 21. bxc3 {[%emt 0:00:01]} a5 {[%emt 0:00:02]} 22. Ra1 {[%emt 0:05:07]} a4 {[%emt 0:00:09]} 23. Ke2 {[%emt 0:05:36]} Kg7 {[%emt 0:00:22]} 24. bxa4 {[%emt 0:00:35]} bxa4 {[%emt 0:00:18]} 25. c4 {[%emt 0:07:07]} Kf8 {[%emt 0:01:43]} 26. Kd3 {[%emt 0:00:41]} Ke7 {[%emt 0:00:07]} 27. Kc3 {[%emt 0:04:42]} Kd6 {[%emt 0:09:20]} 28. Rd1+ {[%emt 0:00:52]} Kc6 {[%emt 0:01:57]} 29. Kb2 {[%emt 0:07:10]} a3+ {[%emt 0:00:17]} 30. Ka2 {[%emt 0:01:44]} Ra4 {[%emt 0:00:09]} 31. Kb3 {[%emt 0:08:19]} Ra5 {[%emt 0:00:02]} 32. Rd5 {[%emt 0:03:01]} Ra8 {[%emt 0:02:48]} 33. Ka2 {[%emt 0:00:08]} Ra4 {[%emt 0:00:01]} 34. Rd4 {[%emt 0:01:52]} Ra5 {[%emt 0:00:21]} 35. Rf4 {[%emt 0:02:38]} Kc5 {[%emt 0:00:21]} 36. Rh4 {[%emt 0:00:25]} Kb4 $1 {[%emt 0:02:06]} 37. c5+ {[%emt 0:02:35]} Kxc5 $2 {[%emt 0:01:55]} (37... Kc3 $1 $11 {and Black stays safe.}) 38. Rxh7 {[%emt 0:01:19]} Kd6 {[%emt 0:00:05]} 39. g4 {[%emt 0:00:53]} (39. Rxf7 $18 Rxf5 40. f3 (40. Kxa3 Rxf2 41. Kb3 Rxg2 $16)) 39... Ke7 $2 {[%emt 0:01:02] [#]} (39... Ra4 $16) 40. Rh3 $1 {[%emt 0:00:16]} Rc5 {[%emt 0:33:57]} 41. c3 {[%emt 0:00:46]} ({Don't play} 41. Kxa3 $6 Rxc2 42. Rf3 Rd2 $16) 41... Ra5 {[%emt 0:00:00]} 42. Rd3 {[%emt 0:00:15]} Ra4 {[%emt 0:00:00]} 43. Rd4 {[%emt 0:00:16]} Ra7 {[%emt 0:00:00]} 44. f3 {[%emt 0:00:23]} Ra8 {[%emt 0:00:00]} 45. h4 {[%emt 0:00:24]} Ra5 {[%emt 0:00:00]} 46. Rc4 {[%emt 0:01:08]} c5 {[%emt 0:00:00]} 47. Re4+ {[%emt 0:01:03]} Kf8 {[%emt 0:00:00]} 48. Re2 {[%emt 0:01:31]} Ra8 {[%emt 0:00:00]} 49. Rd2 {[%emt 0:01:10]} Ra4 {[%emt 0:00:00]} 50. Kb3 {[%emt 0:01:41]} Ra7 $2 {[%emt 0:00:00]} (50... Rf4 51. Rf2 (51. Kxa3 Rxf3 52. Kb3 Rf4 $16) 51... a2 {[%mdl 64] Decoy} 52. Kxa2 Ra4+ 53. Kb3 Rf4) 51. Ra2 {[%emt 0:00:58]} Re7 {[%emt 0:00:00]} 52. Rxa3 {[%emt 0:01:16]} Re3 {[%emt 0:00:00]} 53. Ra5 {[%emt 0:00:26]} c4+ {[%emt 0:00:00]} 54. Kxc4 {[%emt 0:00:18]} Rxf3 $18 {[%emt 0:00:00]} 55. Rd5 {[%emt 0:00:09]} 1-0

[Event "MARCEL 1st Div Ch-League 2019"]
[Site "Dhaka"]
[Date "2019.11.16"]
[Round "5.3"]
[White "Hossain, Monir"]
[Black "Anisuzzaman, Jewel"]
[Result "1/2-1/2"]
[ECO "E10"]
[WhiteElo "2058"]
[BlackElo "1852"]
[Annotator "NA RC"]
[PlyCount "56"]
[EventDate "2019.11.12"]
[EventCountry "BAN"]
[SourceTitle "playchess.com"]
[Source "ChessBase"]
[SourceQuality "1"]
[TimeControl "5400+30"]

{[%evp 8,56,64,21,47,0,46,41,45,39,70,52,57,54,157,136,143,144,145,138,153,141,141,135,143,117,127,112,101,107,110,62,58,50,65,-66,0,0,42,60,59,49,56,52,32767,32767,468,0,9,0,0]} 1. d4 {[%emt 0:00:04]} Nf6 {[%emt 0:00:04]} 2. Nf3 {[%emt 0:00:26]} e6 {[%emt 0:00:43]} 3. c4 {[%emt 0:01:06]} c5 {[%emt 0:02:15]} 4. e3 {[%emt 0:02:09]} Be7 {[%emt 0:07:15]} 5. Be2 {[%emt 0:01:38]} O-O {[%emt 0:00:11]} 6. O-O {[%emt 0:00:29] E10: Blumenfeld Gambit} d6 {[%emt 0:03:22]} 7. Nc3 {[%emt 0:00:26]} Na6 {[%emt 0:02:36]} 8. a3 {[%emt 0:05:03]} Bd7 {[%emt 0:04:34]} 9. Rb1 {[%emt 0:00:37]} Re8 $146 {[%emt 0:09:35]} ({Predecessor:} 9... Bc6 10. d5 Be8 11. e4 e5 12. b4 b6 13. Ne1 Kh8 14. g3 {1-0 (44) Gentes,K (2387)-Sekhar,G (1965) Winnipeg 1998}) 10. b4 {[%emt 0:00:28]} Nc7 {[%emt 0:01:40]} (10... cxd4 $14 11. exd4 Nc7) 11. bxc5 {[%emt 0:00:51]} dxc5 {[%emt 0:01:59]} 12. Rxb7 {[%emt 0:00:20]} Bc6 {[%emt 0:00:04]} 13. Rb1 {[%emt 0:00:38]} Rb8 {[%emt 0:00:50]} 14. Rxb8 {[%emt 0:02:19]} Qxb8 {[%emt 0:00:03]} 15. Ne5 {[%emt 0:00:18]} Ba8 {[%emt 0:01:23]} 16. Bf3 {[%emt 0:00:22]} Bd6 {[%emt 0:02:01]} 17. Bxa8 {[%emt 0:10:31]} Nxa8 {[%emt 0:01:14]} 18. f4 {[%emt 0:02:19]} Nb6 {[%emt 0:03:25]} 19. Nb5 {[%emt 0:03:29]} Rc8 {[%emt 0:06:04]} 20. Qd3 {[%emt 0:04:33]} Bf8 {[%emt 0:14:10]} 21. f5 {[%emt 0:02:10]} (21. Bd2 $1 $14) 21... a6 {[%emt 0:37:02]} (21... cxd4 $15 22. exd4 Nxc4 {[%mdl 64] Discovered Attack} 23. fxe6 fxe6 24. Nxc4 Qxb5) 22. Nc3 {[%emt 0:03:04]} Bd6 {[%emt 0:00:00]} (22... cxd4 $11 23. exd4 Nxc4 24. fxe6 (24. Nxc4 Qb3 $15) 24... fxe6) 23. fxe6 {[%emt 0:00:21]} fxe6 {[%emt 0:00:00]} 24. Nf3 {[%emt 0:09:41]} cxd4 {[%emt 0:00:00]} 25. exd4 {[%emt 0:00:22]} Nxc4 {[%emt 0:00:00]} 26. Ne4 {[%emt 0:00:18]} Nd7 $2 {[%emt 0:00:00] [#]} (26... Qb7 $11 {and Black stays safe.} 27. Nxd6 Nxd6) 27. Neg5 $2 {[%emt 0:04:00]} (27. Nxd6 Nxd6 28. Ng5 (28. Qxa6 Qb6 $16) 28... Nf8 $16) (27. Nfg5 $1 $18 Bxh2+ 28. Kh1) 27... Nf8 {[%emt 0:00:00]} 28. Qe4 {[%emt 0:10:50]} Qa8 $11 {[%emt 0:00:00]} 1/2-1/2